bitfinex/quotes_ETHUSD_20250604
["timestamp","ask_amount","ask_price","bid_price","bid_amount"]
[1749052157738,0.03503542,2662.6,2661.6,10.183]
[1749052157938,0.55,2662.5,2661.6,10.183]
[1749052158236,2.89939641,2662.5,2661.6,10.183]
[1749052158843,0.55,2662.5,2661.6,10.183]
[1749052161516,0.55,2662.5,2661.7,10.178]
[1749052161721,0.03503542,2662.6,2661.8,2.076]
[1749052161922,0.03503542,2662.6,2661.9,2.076]
[1749052161923,0.55,2662.5,2661.9,2.076]
[1749052162239,0.55,2662.5,2662.0,2.076]
[1749052162540,0.55,2662.5,2662.1,2.076]
[1749052162743,0.55,2662.5,2662.2,2.076]
[1749052162906,1.29939641,2662.5,2662.2,2.076]
[1749052164913,0.74939641,2662.5,2662.2,2.076]
[1749052165221,6.36588287,2662.6,2662.2,2.076]
[1749052165822,6.36588287,2662.6,2660.9,3.75811437]
[1749052166017,6.36588287,2662.6,2661.3,14.528969]
[1749052166222,6.36588287,2662.6,2661.3,4.528969]
[1749052166411,6.36588287,2662.6,2661.3,10.0]
[1749052167208,7.16506116,2662.6,2661.3,10.0]
[1749052167418,7.16506116,2662.6,2661.4,11.343]
[1749052167845,7.16506116,2662.6,2661.6,10.0]
[1749052168047,0.03503542,2662.6,2661.7,3.5558]
[1749052168214,0.03503542,2662.6,2661.8,6.927]
[1749052168545,0.03503542,2662.6,2662.1,25.410591]
[1749052168735,0.03503542,2662.6,2662.1,2.601775]
[1749052168935,0.03503542,2662.6,2662.0,1.4851]
[1749052170055,0.03503542,2662.6,2662.1,28.633865]
[1749052170256,0.03503542,2662.6,2662.2,1.4851]
[1749052171040,0.03503542,2662.6,2662.3,2.076]
[1749052171223,0.03503542,2662.6,2662.4,2.076]
[1749052171416,0.58503542,2662.6,2662.5,2.076]
[1749052171622,0.03503542,2662.6,2662.5,2.076]
[1749052172450,0.03503542,2662.6,2662.4,1.5699]
[1749052174531,0.03503542,2662.6,2661.9,1.5235]
[1749052174733,0.03503542,2662.6,2662.0,6.924]
[1749052175230,0.03503542,2662.6,2662.1,13.244952]
[1749052175459,0.03503542,2662.6,2662.3,1.5235]
[1749052177563,0.03503542,2662.6,2662.4,10.176]
[1749052178084,9.258e-05,2662.6,2662.4,10.176]
[1749052181441,9.258e-05,2662.6,2662.5,15.500493]
[1749052181637,9.258e-05,2662.6,2662.5,7.53716]
[1749052181856,9.258e-05,2662.6,2662.5,25.15506]
[1749052182055,0.02,2662.9,2662.8,16.0]
[1749052182256,0.02,2662.9,2662.8,20.84121482]
[1749052182982,0.02,2662.9,2662.8,22.36161482]
[1749052183198,0.02,2662.9,2662.8,21.28008182]
[1749052183749,0.02,2662.9,2662.8,27.699247]
[1749052183978,0.02,2662.9,2662.8,26.4384]
[1749052184150,0.02,2662.9,2662.8,1.5204]
[1749052184486,0.02,2662.9,2662.8,2.075]
[1749052184786,0.02,2662.9,2661.8,33.725319]
[1749052185106,0.02,2662.9,2662.1,16.0]
[1749052185253,0.02,2662.9,2661.8,0.49883482]
[1749052185452,0.02,2662.9,2661.9,30.0]
[1749052185680,0.02,2662.9,2662.1,10.19972]
[1749052186093,0.02,2662.9,2662.2,10.0]
[1749052186457,0.02,2662.9,2662.2,16.0]
[1749052186652,0.02,2662.9,2662.3,13.248954]
[1749052186858,0.02,2662.9,2662.3,3.985825]
[1749052187073,0.02,2662.9,2662.4,10.0]
[1749052187268,0.02,2662.9,2662.2,7.687667]
[1749052187471,0.02,2662.9,2662.3,17.09]
[1749052187683,1.5816,2662.8,2662.3,10.174]
[1749052187858,1.5816,2662.8,2662.3,17.09]
[1749052189162,0.02,2662.9,2662.3,17.58883482]
[1749052189508,0.02,2662.9,2662.3,17.09]
[1749052189651,0.02,2662.9,2662.4,0.49883482]
[1749052190867,0.02,2662.9,2662.5,8.99]
[1749052191382,0.02,2662.9,2662.6,8.982]
[1749052191784,0.02,2662.9,2662.3,8.099]
[1749052192114,0.02,2662.9,2662.4,8.981]
[1749052194200,1.4646,2662.7,2662.5,2.067]
[1749052194608,2.24614474,2662.7,2662.5,2.067]
[1749052194773,1.4646,2662.7,2662.5,2.067]
[1749052196492,1.4646,2662.7,2662.6,2.067]
[1749052196493,2.0146,2662.7,2662.6,2.067]
[1749052197688,2.0146,2662.7,2662.3,8.099]
[1749052197689,0.55,2662.6,2662.3,8.099]
[1749052197895,6.88084745,2662.4,2662.3,8.099]
[1749052198089,6.88084745,2662.4,2662.3,10.166]
[1749052198405,7.7246822,2662.4,2662.3,10.166]
[1749052198602,2.1075,2662.3,2661.0,2.946107]
[1749052198808,7.7246822,2662.4,2661.1,17.079]
[1749052198809,1.5575,2662.0,2661.1,17.079]
[1749052199114,1.5575,2662.0,2661.1,10.167]
[1749052199275,1.5575,2662.0,2661.2,6.911]
[1749052199479,1.5575,2662.0,2661.4,10.389616]
[1749052199711,1.5575,2662.0,2661.5,0.49883482]
[1749052199917,1.5575,2662.0,2661.3,16.0]
[1749052200672,1.5575,2662.0,2661.4,8.978]
[1749052202020,1.5575,2662.0,2661.4,2.067]
[1749052202482,1.5575,2662.0,2661.1,24.1]
[1749052202686,6.88084745,2661.9,2661.2,2.068]
[1749052202889,1.5733,2661.8,2661.2,18.068]
[1749052203126,6.33084745,2661.6,2661.2,2.068]
[1749052203321,1.5733,2661.5,2661.2,2.068]
[1749052203480,0.79041475,2661.4,2661.2,2.068]
[1749052204030,1.5733,2661.5,2661.2,2.068]
[1749052205691,6.33084745,2662.3,2661.2,2.068]
[1749052205897,1.4743,2662.2,2661.2,2.068]
[1749052206552,1.4743,2662.2,2661.3,10.0]
[1749052206696,1.4743,2662.2,2661.5,0.1468]
[1749052206893,1.5481,2662.8,2661.6,6.909]
[1749052207346,1.5481,2662.8,2661.7,16.0]
[1749052207559,1.5481,2662.8,2662.1,0.1468]
[1749052207831,0.02,2662.9,2662.3,6.33084745]
[1749052207997,0.02,2662.9,2662.4,6.909]
[1749052208196,0.02,2662.9,2662.5,2.068]
[1749052208437,0.02,2662.9,2662.5,18.068]
[1749052208636,0.02,2662.9,2662.7,16.0]
[1749052208809,0.02,2662.9,2662.6,16.1468]
[1749052209136,0.02,2662.9,2662.6,0.1468]
[1749052209339,0.02,2662.9,2662.7,14.443763]
[1749052209497,0.02,2663.9,2663.1,11.59194]
[1749052209698,0.02,2663.9,2663.3,12.681141]
[1749052209894,0.02,2663.9,2663.2,6.908]
[1749052210338,0.02,2663.9,2663.3,6.907]
[1749052210522,0.02,2663.9,2663.1,6.907]
[1749052211311,0.02,2663.9,2662.9,0.1468]
[1749052211637,2.0594,2663.8,2663.0,6.906]
[1749052211837,7.4818592,2663.6,2662.7,6.906]
[1749052212047,7.4818592,2663.6,2662.8,16.0]
[1749052212450,0.90112592,2663.7,2662.8,16.0]
[1749052212619,0.02,2663.9,2662.8,16.49883482]
[1749052213237,0.02,2663.9,2662.9,0.49883482]
[1749052213546,1.4753,2663.5,2662.7,6.905]
[1749052213749,0.55,2663.4,2662.1,0.1468]
[1749052213910,7.4818592,2663.4,2662.1,0.1468]
[1749052214117,0.89571592,2663.3,2662.1,16.1468]
[1749052214315,0.89571592,2663.3,2662.1,0.1468]
[1749052214618,8.4655592,2663.1,2662.1,0.1468]
[1749052214817,8.4655592,2663.1,2661.9,6.904]
[1749052214818,0.55,2663.0,2661.9,6.904]
[1749052215013,0.55,2663.0,2662.0,6.904]
[1749052215313,1.45155592,2663.0,2662.1,16.0]
[1749052215719,1.5337,2663.1,2662.1,16.0]
[1749052217548,1.5337,2663.1,2662.3,16.0]
[1749052218452,1.5337,2663.1,2662.5,16.0]
[1749052218649,1.5337,2663.1,2662.5,10.0]
[1749052218850,1.5337,2663.1,2662.4,2.170448]
[1749052219018,1.5337,2663.1,2662.5,10.0]
[1749052219225,1.5337,2663.1,2662.3,28.250448]
[1749052219456,1.5337,2663.1,2662.3,16.0]
[1749052220057,1.5337,2663.1,2662.5,16.0]
[1749052220265,1.614,2663.6,2662.5,16.0]
[1749052220450,1.614,2663.6,2662.5,10.0]
[1749052221034,1.614,2663.6,2662.5,16.0]
[1749052221234,1.614,2663.6,2662.3,16.0]
[1749052221641,1.614,2663.6,2662.5,16.0]
[1749052222061,1.614,2663.6,2662.3,16.0]
[1749052222394,1.614,2663.6,2662.5,16.0]
[1749052222535,1.614,2663.6,2662.6,12.259138]
[1749052222733,1.614,2663.6,2662.4,0.49883482]
[1749052222958,1.614,2663.6,2662.5,16.0]
[1749052223379,1.614,2663.6,2662.5,13.404851]
[1749052223689,1.614,2663.6,2662.6,16.0]
[1749052223869,1.614,2663.6,2662.6,16.49883482]
[1749052224068,1.614,2663.6,2662.7,0.66773482]
[1749052224251,1.614,2663.6,2662.9,16.0]
[1749052224454,1.614,2663.6,2662.7,0.66773482]
[1749052224455,1.614,2663.6,2663.1,16.0]
[1749052225339,1.6125,2663.9,2663.1,16.0]
[1749052226144,1.6125,2663.9,2663.2,0.49883482]
[1749052226344,1.6125,2663.9,2663.3,19.371235]
[1749052226643,1.6125,2663.9,2663.3,16.0]
[1749052226849,1.6125,2663.9,2663.3,14.228112]
[1749052227065,1.6125,2663.9,2663.3,16.0]
[1749052227270,1.6125,2663.9,2663.2,16.0]
[1749052227576,1.6125,2663.9,2663.3,6.897]
[1749052229610,0.02,2663.9,2663.3,7.0659]
[1749052229966,0.02,2663.9,2663.7,16.0]
[1749052230201,0.02,2663.9,2663.8,10.156]
[1749052230401,0.00036729,2663.9,2663.8,10.156]
[1749052233689,0.00036729,2663.9,2663.8,26.156]
[1749052235211,0.00036729,2663.9,2663.8,44.84869782]
[1749052235369,0.00036729,2663.9,2663.8,45.01759782]
[1749052235977,0.00036729,2663.9,2663.8,43.38178682]
[1749052236175,0.00036729,2663.9,2663.8,35.28378682]
[1749052236776,0.00036729,2663.9,2663.8,39.0378224]
[1749052237029,0.00036729,2663.9,2663.8,39.5878224]
[1749052237228,0.02,2664.9,2664.0,3.75369394]
[1749052237378,0.02,2664.9,2664.2,11.780313]
[1749052237577,0.02,2664.9,2664.1,25.55899701]
[1749052237578,0.02,2664.9,2664.4,2.347047]
[1749052237777,0.02,2664.9,2664.3,22.89]
[1749052237778,0.02,2664.9,2664.5,2.057]
[1749052238577,0.02,2664.9,2664.7,16.0]
[1749052238991,0.02,2664.9,2664.8,23.325417]
[1749052239196,0.02,2664.9,2664.8,16.0]
[1749052239711,0.02,2664.9,2664.8,18.057]
[1749052241314,0.02,2664.9,2664.8,2.057]
[1749052242392,1.5899,2664.9,2664.8,2.057]
[1749052243623,2.1399,2664.9,2664.8,2.057]
[1749052244119,4.4859897,2664.9,2664.8,2.057]
[1749052246730,1.5081,2664.6,2663.5,0.1689]
[1749052246901,6.32099701,2664.5,2663.6,17.035]
[1749052247414,6.32099701,2664.5,2663.7,6.883]
[1749052247594,16.0,2664.4,2663.8,6.883]
[1749052247795,16.0,2664.4,2663.9,2.057]
[1749052247796,1.5081,2664.2,2663.9,2.057]
[1749052248330,7.82909701,2664.2,2663.9,2.057]
[1749052248633,1.5081,2663.9,2663.6,14.977]
[1749052248800,1.5081,2663.9,2663.7,2.057]
[1749052251196,1.5081,2663.9,2663.6,8.094]
[1749052251494,1.5764,2663.8,2663.7,2.057]
[1749052251832,2.9161397,2663.8,2663.7,2.057]
[1749052255039,2.9161397,2663.8,2663.7,2.048]
[1749052255902,25.7961397,2663.8,2663.7,2.048]
[1749052256538,18.9161397,2663.8,2663.7,2.048]
[1749052258725,25.7951397,2663.8,2663.7,2.048]
[1749052260344,18.9161397,2663.8,2663.7,2.048]
[1749052260638,1.5764,2663.8,2663.7,2.048]
[1749052262144,2.0539,2664.2,2663.7,2.048]
[1749052262507,1.5039,2664.2,2663.7,2.048]
[1749052263311,6.32099701,2664.0,2663.8,2.048]
[1749052263652,6.87099701,2664.0,2663.9,2.048]
[1749052267048,1.5039,2664.2,2663.9,2.048]
[1749052267418,1.5039,2664.2,2664.0,8.097]
[1749052268815,7.82489701,2664.2,2664.0,8.097]
[1749052269234,0.55,2664.1,2664.0,8.097]
[1749052269573,1.3874897,2664.1,2664.0,10.145]
[1749052270144,18.9814897,2664.1,2664.0,10.145]
[1749052270847,18.9740897,2664.1,2664.0,10.145]
[1749052271827,0.55,2663.9,2662.1,0.02]
[1749052272067,1.5586,2663.0,2662.1,0.02]
[1749052272270,6.32099701,2662.7,2662.1,0.02]
[1749052272471,6.32099701,2662.7,2662.2,6.871]
[1749052272645,6.32099701,2662.7,2662.1,0.02]
[1749052272846,7.87959701,2663.0,2662.2,6.871]
[1749052273845,7.87959701,2663.0,2662.3,6.871]
[1749052274248,7.87959701,2663.0,2662.3,6.87]
[1749052274435,6.32099701,2662.4,2662.1,0.02]
[1749052274776,7.90349701,2662.4,2662.1,0.02]
[1749052275339,8.69384671,2662.4,2662.1,0.02]
[1749052275533,0.55,2662.3,2662.1,0.02]
[1749052275955,22.87,2663.1,2662.1,0.02]
[1749052275956,1.4721,2662.7,2662.1,0.02]
[1749052276354,6.32099701,2662.5,2662.1,0.02]
[1749052276774,1.4721,2662.7,2662.1,0.02]
[1749052276959,7.79309701,2662.7,2662.1,0.02]
[1749052277160,10.17240671,2662.7,2662.1,0.02]
[1749052277551,10.17240671,2662.7,2662.2,10.147]
[1749052278648,6.32099701,2662.4,2662.2,10.147]
[1749052278848,16.55,2662.3,2662.2,10.147]
[1749052279054,18.0915,2662.3,2662.2,10.147]
[1749052279278,20.5327497,2662.3,2662.2,10.147]
[1749052280454,27.4007497,2662.3,2662.2,10.147]
[1749052280953,33.72174671,2662.3,2662.2,10.147]
[1749052281564,32.18024671,2662.3,2662.2,8.1]
[1749052281769,34.13764671,2662.3,2662.2,10.149]
[1749052282451,27.26964671,2662.3,2662.2,10.149]
[1749052282794,18.0074,2662.3,2662.2,10.149]
[1749052283657,2.0074,2662.3,2662.2,10.149]
[1749052284213,16.0,2662.6,2662.2,10.149]
[1749052284214,1.5656,2662.6,2662.2,10.149]
[1749052284417,1.5656,2663.4,2662.2,17.016]
[1749052284779,1.5656,2664.3,2662.3,18.018097]
[1749052284962,6.32099701,2664.0,2662.4,12.410045]
[1749052285414,6.32099701,2664.1,2662.6,15.550431]
[1749052285617,6.32099701,2664.1,2662.7,16.867]
[1749052285909,0.6320997,2664.0,2662.7,6.867]
[1749052286467,6.32099701,2663.8,2662.7,6.867]
[1749052287000,6.32099701,2663.8,2662.8,16.0]
[1749052287213,6.32099701,2663.8,2662.9,8.902]
[1749052287719,0.55,2663.7,2662.9,2.037]
[1749052287922,1.2370997,2663.7,2663.0,6.865]
[1749052288380,6.32099701,2663.5,2662.9,2.037]
[1749052288708,6.32099701,2663.2,2663.0,2.037]
[1749052288910,6.32099701,2663.2,2663.1,2.037]
[1749052289275,2.1592997,2663.7,2661.9,6.76806907]
[1749052289471,0.55,2663.6,2662.1,13.334556]
[1749052289711,0.55,2663.6,2662.1,13.78162806]
[1749052290018,0.55,2663.6,2662.3,16.0]
[1749052290621,0.55,2663.6,2662.3,16.44707206]
[1749052290918,6.32099701,2663.7,2662.4,15.04335]
[1749052291084,0.6320997,2663.6,2662.7,16.0]
[1749052291271,0.02,2662.9,2662.8,6.862]
[1749052291478,0.02,2662.9,2662.8,22.862]
[1749052291678,0.00015759,2662.9,2662.8,22.862]
[1749052293184,0.00015759,2662.9,2662.8,25.389528]
[1749052293389,0.00015759,2662.9,2662.8,25.198817]
[1749052293900,0.00015759,2662.9,2662.8,25.64588906]
[1749052294416,0.00015759,2662.9,2662.8,31.96688607]
[1749052294626,0.00015759,2662.9,2662.8,35.72233146]
[1749052295430,0.00015759,2662.9,2662.8,16.44707206]
[1749052295654,0.00015759,2662.9,2662.8,22.858]
[1749052296036,0.00015759,2662.9,2662.8,16.0]
[1749052296201,0.00015759,2662.9,2662.8,22.858]
[1749052297206,0.00015759,2662.9,2662.8,27.993372]
[1749052297407,0.00015759,2662.9,2662.8,41.367372]
[1749052297706,0.00015759,2662.9,2662.8,39.396771]
[1749052297907,0.00015759,2662.9,2662.8,40.36028845]
[1749052299018,0.00015759,2662.9,2662.8,36.60484306]
[1749052300517,0.00015759,2662.9,2662.8,40.36028845]
[1749052300721,0.00015759,2662.9,2662.8,40.91028845]
[1749052301453,0.00015759,2662.9,2662.8,37.15484306]
[1749052301618,0.00015759,2662.9,2662.8,29.05684306]
[1749052302015,0.00015759,2662.9,2662.8,21.64884306]
[1749052302216,0.00015759,2662.9,2662.8,28.054771]
[1749052302444,0.00015759,2662.9,2662.8,27.957689]
[1749052302838,0.00015759,2662.9,2662.8,21.104689]
[1749052303044,0.00015759,2662.9,2662.8,27.956689]
[1749052303927,1.5217,2663.9,2662.9,16.0]
[1749052304529,1.5217,2663.9,2663.1,16.0]
[1749052304530,0.02,2663.9,2663.1,16.0]
[1749052304736,0.02,2663.9,2663.2,8.71530506]
[1749052304951,0.02,2663.9,2663.2,0.44707206]
[1749052305242,0.02,2663.9,2663.3,2.129624]
[1749052305981,0.02,2663.9,2663.3,0.44707206]
[1749052306183,0.02,2663.9,2663.0,19.75509977]
[1749052306386,0.02,2663.9,2663.3,21.038583]
[1749052306678,0.02,2663.9,2663.3,18.518583]
[1749052306883,0.02,2663.9,2663.5,5.616684]
[1749052307047,0.02,2663.9,2663.7,16.0]
[1749052307248,0.02,2663.9,2663.7,6.849]
[1749052307498,0.02,2663.9,2663.8,26.133]
[1749052307991,0.02,2663.9,2663.8,26.33255]
[1749052308177,0.02,2663.9,2663.8,39.04654406]
[1749052308378,0.02,2663.9,2663.8,45.36754107]
[1749052308966,0.02,2663.9,2663.8,31.37171106]
[1749052309161,0.02,2663.9,2663.8,32.98]
[1749052309480,0.02,2663.9,2663.8,24.097]
[1749052309673,0.02,2663.9,2663.8,32.98]
[1749052312550,0.02,2663.9,2663.8,24.097]
[1749052312749,0.02,2663.9,2663.8,32.965]
[1749052313166,0.02,2663.9,2663.8,8.097]
[1749052313368,0.02,2663.9,2663.8,10.121]
[1749052313562,0.7999697,2663.9,2663.8,10.121]
[1749052316278,0.02,2663.9,2663.8,10.121]
[1749052320502,1.4947,2663.9,2663.8,8.097]
[1749052320800,1.4947,2663.9,2663.8,10.121]
[1749052321503,0.02,2663.9,2663.8,10.121]
[1749052323409,0.02,2663.9,2663.8,18.024]
[1749052324210,0.02,2663.9,2663.8,24.861]
[1749052324996,0.02,2663.9,2663.8,8.861]
[1749052325710,0.02,2663.9,2663.8,2.024]
[1749052326089,1.6074,2663.9,2663.8,2.024]
[1749052326286,7.92839701,2663.9,2662.8,16.0]
[1749052326598,7.92839701,2663.9,2663.0,16.0]
[1749052326800,7.92839701,2663.9,2663.1,2.024]
[1749052327409,1.6074,2663.9,2663.2,10.0]
[1749052327719,1.6074,2663.9,2663.3,16.0]
[1749052328823,0.02,2663.9,2663.3,16.0]
[1749052331081,0.02,2663.9,2663.4,0.44707206]
[1749052331830,0.02,2663.9,2663.2,8.096]
[1749052332125,0.02,2663.9,2663.5,2.195249]
[1749052332415,0.02,2663.9,2663.6,6.832]
[1749052338126,0.00026413,2663.9,2663.8,2.024]
[1749052342195,0.00026413,2663.9,2663.8,10.119]
[1749052345610,0.00026413,2663.9,2663.8,2.011]
[1749052346915,0.00026413,2663.9,2663.8,8.832]
[1749052347443,0.00026413,2663.9,2663.8,16.927]
[1749052350451,1.5265,2664.5,2663.8,16.927]
[1749052351629,0.02,2664.9,2663.8,16.927]
[1749052351630,1.4335,2664.8,2664.2,10.0]
[1749052351829,1.4335,2664.8,2664.0,10.0]
[1749052352145,1.5323,2664.4,2663.8,8.095]
[1749052352351,1.5323,2664.4,2664.1,2.011]
[1749052352507,3.71372688,2664.2,2664.1,2.011]
[1749052352719,5.50549957,2664.2,2664.1,2.011]
[1749052353046,1.79177269,2664.2,2664.1,2.011]
[1749052356533,0.55,2663.9,2663.8,8.095]
[1749052356847,9.08321719,2663.9,2663.8,10.106]
[1749052358877,1.5085,2663.9,2663.8,10.106]
[1749052359738,8.53321719,2663.9,2663.8,10.106]
[1749052359934,9.38653891,2663.9,2663.8,10.106]
[1749052360569,9.93653891,2663.9,2663.8,10.106]
[1749052361068,2.013,2663.8,2662.1,0.02]
[1749052361282,1.463,2662.8,2662.1,0.02]
[1749052361621,1.463,2662.8,2662.2,6.811]
[1749052362258,1.463,2662.8,2662.3,16.0]
[1749052362462,1.463,2662.8,2662.2,6.811]
[1749052363162,1.5303,2663.3,2662.3,16.0]
[1749052363469,1.5303,2663.3,2662.3,16.44707206]
[1749052363670,1.5303,2663.3,2662.3,16.0]
[1749052364574,1.5303,2663.3,2662.5,16.0]
[1749052364731,1.5303,2663.3,2662.5,16.36046506]
[1749052364936,1.5303,2663.3,2662.5,16.44707206]
[1749052365137,1.5303,2663.3,2662.5,16.0]
[1749052365538,1.5303,2663.3,2662.6,6.809]
[1749052366243,1.5303,2663.3,2662.7,6.809]
[1749052367272,1.5303,2663.3,2662.8,16.0]
[1749052367464,1.5303,2663.3,2662.9,10.109]
[1749052369367,2.0286,2663.8,2662.9,10.109]
[1749052370140,9.05331719,2663.8,2662.9,10.109]
[1749052372864,8.50331719,2663.8,2662.9,10.109]
[1749052373474,1.4786,2663.8,2663.0,16.0]
[1749052373884,1.5444,2664.1,2663.2,16.0]
[1749052374079,1.5444,2664.1,2663.0,0.41727357]
[1749052374378,1.5444,2664.3,2663.2,16.253215]
[1749052374586,1.5444,2664.3,2663.2,16.67048857]
[1749052374749,1.5444,2664.3,2663.3,13.178328]
[1749052375085,1.5444,2664.3,2663.4,6.803]
[1749052375268,1.5444,2664.1,2663.5,1.998]
[1749052375474,1.5444,2664.1,2663.6,1.998]
[1749052376347,8.56911719,2664.1,2663.6,1.998]
[1749052376585,0.85691172,2664.2,2663.6,1.998]
[1749052376586,7.02471719,2663.8,2663.6,1.998]
[1749052376946,1.5666,2663.7,2663.6,1.998]
[1749052377160,2.42573172,2663.7,2663.6,1.998]
[1749052378643,1.5666,2663.7,2663.6,1.998]
[1749052382049,1.5269,2664.1,2663.6,1.998]
[1749052384650,1.5269,2664.1,2663.7,1.998]
[1749052384851,1.5269,2664.1,2663.8,1.998]
[1749052385052,1.5269,2664.1,2663.9,1.998]
[1749052385247,1.75269,2664.0,2663.9,1.998]
[1749052386262,1.5269,2664.1,2663.9,1.998]
[1749052386680,0.55,2664.5,2663.9,1.998]
[1749052386681,1.5584,2664.4,2663.9,1.998]
[1749052386879,7.02471719,2664.0,2662.9,8.097]
[1749052387086,1.5766,2663.3,2663.0,1.998]
[1749052387782,1.5766,2663.6,2663.0,1.998]
[1749052387980,1.5766,2664.2,2663.0,2.41527357]
[1749052388183,1.5766,2664.2,2663.2,11.824792]
[1749052388408,7.04471719,2664.9,2663.5,3.75442806]
[1749052388409,1.5207,2664.7,2663.5,3.75442806]
[1749052388702,1.5207,2664.7,2663.7,20.345104]
[1749052388899,1.5207,2664.7,2663.8,1.998]
[1749052389054,1.5207,2664.7,2664.0,10.0]
[1749052389254,1.5207,2664.7,2664.1,10.0]
[1749052389463,1.5207,2664.7,2664.0,10.0]
[1749052389670,1.5207,2664.7,2663.8,1.998]
[1749052389854,1.5207,2664.7,2663.9,9.611147]
[1749052390074,1.5207,2664.7,2663.8,1.998]
[1749052390254,1.5207,2664.7,2663.9,3.861389]
[1749052390899,1.5207,2664.7,2663.7,10.0]
[1749052391068,1.5207,2664.7,2664.0,1.998]
[1749052391268,1.5207,2664.7,2664.1,8.787]
[1749052392978,7.02471719,2664.6,2664.2,1.998]
[1749052393177,0.85454172,2664.5,2664.3,8.095]
[1749052394555,1.5207,2664.7,2664.3,8.095]
[1749052396298,1.5207,2664.7,2664.3,14.88]
[1749052396607,1.5207,2664.7,2664.3,8.095]
[1749052397504,1.5207,2664.7,2664.3,14.879]
[1749052397671,1.5207,2664.7,2664.3,8.095]
[1749052397862,2.37724172,2664.7,2664.4,1.998]
[1749052399978,2.37724172,2664.7,2664.5,1.998]
[1749052399979,8.52401719,2664.6,2664.5,1.998]
[1749052401369,1.4993,2664.6,2664.5,1.998]
[1749052402873,1.5174,2664.9,2664.5,1.998]
[1749052403108,0.02,2664.9,2664.5,2.41527357]
[1749052403276,0.02,2664.9,2664.5,1.998]
[1749052404293,0.02,2664.9,2663.9,16.0]
[1749052404294,0.02,2664.9,2663.4,3.75458932]
[1749052404496,0.02,2664.9,2664.0,40.0]
[1749052404800,0.02,2664.9,2664.0,30.0]
[1749052405191,0.02,2664.9,2664.0,26.867895]
[1749052405392,0.02,2664.9,2664.1,6.778]
[1749052405604,0.02,2664.9,2664.2,11.232195]
[1749052405783,0.02,2664.9,2664.2,10.841626]
[1749052406882,0.02,2664.9,2664.4,20.551572]
[1749052407304,0.02,2664.9,2664.4,19.048115]
[1749052407527,0.02,2664.9,2664.8,53.02471719]
[1749052407688,0.00042922,2664.9,2664.8,59.80071719]
[1749052408302,0.00042922,2664.9,2664.8,56.36947419]
[1749052409032,0.00042922,2664.9,2664.8,60.12210102]
[1749052409202,0.00042922,2664.9,2664.8,60.67210102]
[1749052410631,0.00042922,2664.9,2664.8,61.05460179]
[1749052410788,0.00067209,2665.9,2664.8,61.05460179]
[1749052410996,0.00067209,2665.9,2665.5,17.908534]
[1749052411307,0.00067209,2665.9,2665.7,16.0]
[1749052411507,0.00067209,2665.9,2665.6,6.772]
[1749052411729,0.00067209,2665.9,2665.2,10.0]
[1749052411930,0.00067209,2665.9,2665.3,6.771]
[1749052412127,0.00067209,2665.9,2665.4,2.051432]
[1749052412293,0.00067209,2665.9,2665.5,8.253342]
[1749052412494,0.00067209,2665.9,2665.4,22.80282519]
[1749052412693,0.00067209,2665.9,2665.4,12.80282519]
[1749052412940,0.00067209,2665.9,2665.4,16.503289]
[1749052413108,0.00067209,2665.9,2665.4,8.65765]
[1749052414198,0.00067209,2665.9,2665.5,13.261243]
[1749052414509,0.00067209,2665.9,2665.6,2.432204]
[1749052415613,0.00067209,2665.9,2665.6,10.0]
[1749052415929,0.00067209,2665.9,2665.5,10.0]
[1749052416825,0.00067209,2665.9,2665.4,16.0]
[1749052417016,0.00067209,2665.9,2665.6,6.766]
[1749052417212,7.02538928,2665.9,2664.6,29.597533]
[1749052417396,7.02538928,2665.9,2664.4,7.02471719]
[1749052417397,1.4703,2665.7,2665.1,16.0]
[1749052417802,1.4703,2665.7,2665.2,6.765]
[1749052418432,1.4703,2665.7,2664.7,11.326]
[1749052418609,1.4703,2665.7,2664.9,10.0]
[1749052418814,1.4703,2665.7,2665.0,6.764]
[1749052419002,0.21728389,2665.6,2665.0,6.764]
[1749052419527,1.4703,2665.7,2665.0,6.764]
[1749052419528,1.4703,2665.7,2665.2,10.0]
[1749052419698,1.4703,2665.7,2665.2,7.033344]
[1749052420036,1.4703,2665.7,2665.2,2.003748]
[1749052420937,1.4703,2665.7,2665.2,10.0]
[1749052421118,1.4703,2665.7,2665.1,10.0]
[1749052421505,1.4703,2665.7,2665.2,10.0]
[1749052421815,1.4703,2665.7,2665.1,10.0]
[1749052422023,1.4703,2665.7,2665.2,10.0]
[1749052422639,1.4703,2665.7,2665.1,10.0]
[1749052422817,1.4703,2665.7,2665.2,6.761]
[1749052423547,1.5104,2665.2,2664.7,8.09]
[1749052423741,1.5104,2665.2,2664.8,1.983]
[1749052423943,1.5104,2665.2,2664.8,8.743]
[1749052424145,1.5104,2665.2,2664.8,1.983]
[1749052424305,2.36391172,2665.2,2664.8,1.983]